fUSD/lending_fUSD_20250702
["ID","MTS","AMOUNT","RATE_DAILY","PERIOD"]
[369000401,1751430641931,-490.0,0.00016706,2]
[369000403,1751430641940,-490.0,0.00016706,2]
[369000405,1751430641949,-490.0,0.00016706,2]
[369000407,1751430641959,-490.0,0.00016706,2]
[369000409,1751430641968,-490.0,0.00016706,2]
[369000411,1751430641977,-490.0,0.00016706,2]
[369000413,1751430641987,-430.71682986,0.00016706,2]
[369000415,1751430641996,-490.0,0.00016706,2]
[369000417,1751430642006,-490.0,0.00016706,2]
[369000419,1751430642015,-490.0,0.00016706,2]
[369000421,1751430642025,-151.22344083,0.00016706,2]
[369000423,1751430642034,-490.0,0.00016706,2]
[369000425,1751430642043,-490.0,0.00016706,2]
[369000427,1751430642052,-496.84917093,0.00016706,2]
[369000428,1751430642062,-502.80048563,0.00016706,2]
[369000431,1751430642071,-176.94,0.00016706,2]
[369000432,1751430642081,-521.64230028,0.00016706,2]
[369000435,1751430642090,-490.0,0.00016706,2]
[369000437,1751430642100,-490.0,0.00016706,2]
[369000438,1751430642109,-2191.38,0.00016706,2]
[369000440,1751430642118,-495.60052191,0.00016706,2]
[369000442,1751430642128,-480.28960093,0.00016706,2]
[369000444,1751430642137,-490.0,0.00016706,2]
[369000446,1751430642147,-490.0,0.00016706,2]
[369000449,1751430642156,-490.0,0.00016706,2]
[369000450,1751430642165,-500.0,0.00016706,2]
[369000452,1751430642174,-490.0,0.00016706,2]
[369000455,1751430642184,-935.54,0.00016706,2]
[369000457,1751430642193,-490.0,0.00016706,2]
[369000459,1751430642203,-1075.43,0.00016706,2]
[369000461,1751430642213,-490.0,0.00016706,2]
[369000462,1751430642222,-490.0,0.00016706,2]
[369000465,1751430642232,-490.0,0.00016706,2]
[369000467,1751430642241,-490.0,0.00016706,2]
[369000468,1751430642250,-490.93842171,0.00016706,2]
[369000471,1751430642260,-983.47,0.00016706,2]
[369000473,1751430642270,-490.0,0.00016706,2]
[369000475,1751430642279,-766.6,0.00016706,2]
[369000476,1751430642290,-195.33706338,0.00016706,2]
[369000478,1751430642299,-490.0,0.00016706,2]
[369000480,1751430642308,-589.23,0.00016706,2]
[369000482,1751430642318,-494.2514357,0.00016706,2]
[369000484,1751430642328,-490.0,0.00016706,2]
[369000486,1751430642337,-531.61,0.00016706,2]
[369000488,1751430642346,-500.0,0.00016706,2]
[369000491,1751430642356,-490.0,0.00016706,2]
[369000492,1751430642365,-1242.19,0.00016706,2]
[369000493,1751430642374,-490.0,0.00016706,2]
[369000495,1751430642383,-1234.33,0.00016706,2]
[369000497,1751430642392,-490.0,0.00016706,2]
[369000499,1751430642401,-492.53540493,0.00016706,2]
[369000501,1751430642410,-490.0,0.00016706,2]
[369000503,1751430642419,-490.0,0.00016706,2]
[369000505,1751430642428,-490.0,0.00016706,2]
[369000507,1751430642437,-490.0,0.00016706,2]
[369000509,1751430642448,-490.0,0.00016706,2]
[369000511,1751430642457,-490.0,0.00016706,2]
[369000513,1751430642467,-490.0,0.00016706,2]
[369000515,1751430642476,-631.59,0.00016706,2]
[369000517,1751430642485,-490.0,0.00016706,2]
[369000519,1751430642494,-2366.81,0.00016706,2]
[369000521,1751430642503,-490.0,0.00016706,2]
[369000523,1751430642515,-490.0,0.00016706,2]
[369000525,1751430642525,-490.0,0.00016706,2]
[369000527,1751430642535,-490.0,0.00016706,2]
[369000529,1751430642545,-490.0,0.00016706,2]
[369000531,1751430642554,-490.0,0.00016706,2]
[369000533,1751430642564,-490.0,0.00016706,2]
[369000535,1751430642573,-490.0,0.00016706,2]
[369000537,1751430642583,-490.0,0.00016706,2]
[369000539,1751430642593,-886.76,0.00016706,2]
[369000541,1751430642602,-490.0,0.00016706,2]
[369000543,1751430642611,-1044.42,0.00016706,2]
[369000545,1751430642625,-490.0,0.00016706,2]
[369000547,1751430642634,-490.0,0.00016706,2]
[369000549,1751430642644,-490.0,0.00016706,2]
[369000551,1751430642654,-1163.33,0.00016706,2]
[369000553,1751430642664,-490.0,0.00016706,2]
[369000555,1751430642673,-500.0,0.00016706,2]
[369000557,1751430642682,-500.24,0.00016706,2]
[369000559,1751430642692,-490.0,0.00016706,2]
[369000561,1751430642701,-490.0,0.00016706,2]
[369000563,1751430642710,-490.0,0.00016706,2]
[369000565,1751430642719,-1268.06,0.00016706,2]
[369000567,1751430642728,-2354.8,0.00016706,2]
[369000569,1751430642737,-547.5,0.00016706,2]
[369000571,1751430642746,-490.0,0.00016706,2]
[369000573,1751430642755,-490.0,0.00016706,2]
[369000575,1751430642764,-490.0,0.00016706,2]
[369000577,1751430642774,-490.0,0.00016706,2]
[369000580,1751430642795,-713.72,0.00016706,2]
[369000582,1751430642804,-517.46,0.00016706,2]
[369000584,1751430642813,-818.76,0.00016706,2]
[369000586,1751430642823,-490.0,0.00016706,2]
[369000588,1751430642832,-490.0,0.00016706,2]
[369000590,1751430642841,-490.0,0.00016706,2]
[369000592,1751430642851,-1023.36,0.00016706,2]
[369000594,1751430642860,-490.0,0.00016706,2]
[369000596,1751430642869,-490.0,0.00016706,2]
[369000598,1751430642878,-490.0,0.00016706,2]
[369000600,1751430642889,-490.0,0.00016706,2]
[369000602,1751430642898,-490.0,0.00016706,2]
[369000604,1751430642908,-490.0,0.00016706,2]
[369000606,1751430642918,-490.0,0.00016706,2]
[369000609,1751430642928,-490.0,0.00016706,2]
[369000611,1751430642937,-490.0,0.00016706,2]
[369000613,1751430642947,-490.0,0.00016706,2]
[369000615,1751430642956,-490.0,0.00016706,2]
[369000617,1751430642965,-904.57,0.00016706,2]
[369000619,1751430642975,-490.0,0.00016706,2]
[369000621,1751430642984,-490.0,0.00016706,2]
[369000624,1751430642999,-500.0,0.00016706,2]
[369000627,1751430643008,-490.0,0.00016706,2]
[369000631,1751430643018,-817.66,0.00016706,2]
[369000635,1751430643027,-619.42,0.00016706,2]
[369000639,1751430643036,-490.0,0.00016706,2]
[369000641,1751430643045,-490.0,0.00016706,2]
[369000645,1751430643055,-641.43,0.00016706,2]
[369000648,1751430643064,-974.25,0.00016706,2]
[369000650,1751430643073,-490.0,0.00016706,2]
[369000653,1751430643082,-2275.31,0.00016706,2]
[369000656,1751430643091,-490.0,0.00016706,2]
[369000659,1751430643101,-520.49,0.00016706,2]
[369000662,1751430643110,-490.0,0.00016706,2]
[369000665,1751430643120,-490.0,0.00016706,2]
[369000668,1751430643130,-490.0,0.00016706,2]
[369000671,1751430643139,-505.04,0.00016706,2]
[369000674,1751430643149,-616.39662732,0.00016706,2]
[369000677,1751430643159,-490.0,0.00016706,2]
[369000680,1751430643168,-490.0,0.00016706,2]
[369000683,1751430643178,-490.0,0.00016706,2]
[369000686,1751430643187,-490.0,0.00016706,2]
[369000689,1751430643197,-1949.75,0.00016706,2]
[369000692,1751430643206,-490.0,0.00016706,2]
[369000696,1751430643216,-490.0,0.00016706,2]
[369000699,1751430643225,-490.0,0.00016706,2]
[369000702,1751430643234,-490.0,0.00016706,2]
[369000705,1751430643243,-528.73,0.00016706,2]
[369000708,1751430643252,-1480.41,0.00016706,2]
[369000710,1751430643261,-490.0,0.00016706,2]
[369000713,1751430643271,-610.15,0.00016706,2]
[369000716,1751430643280,-855.26,0.00016706,2]
[369000719,1751430643289,-490.0,0.00016706,2]
[369000723,1751430643299,-490.0,0.00016706,2]
[369000726,1751430643309,-500.04645378,0.00016706,2]
[369000729,1751430643318,-490.0,0.00016706,2]
[369000732,1751430643328,-491.48240594,0.00016706,2]
[369000734,1751430643337,-714.4,0.00016706,2]
[369000738,1751430643346,-1202.46,0.00016706,2]
[369000741,1751430643356,-569.33,0.00016706,2]
[369000744,1751430643364,-490.0,0.00016706,2]
[369000746,1751430643374,-490.0,0.00016706,2]
[369000748,1751430643384,-490.0,0.00016706,2]
[369000750,1751430643393,-490.0,0.00016706,2]
[369000752,1751430643403,-490.0,0.00016706,2]
[369000754,1751430643412,-490.0,0.00016706,2]
[369000756,1751430643421,-490.0,0.00016706,2]
[369000758,1751430643431,-605.1,0.00016706,2]
[369000760,1751430643440,-490.0,0.00016706,2]
[369000762,1751430643449,-490.0,0.00016706,2]
[369000764,1751430643459,-438.67401419,0.00016706,2]
[369000766,1751430643468,-490.0,0.00016706,2]
[369000768,1751430643477,-877.14,0.00016706,2]
[369000770,1751430643486,-490.0,0.00016706,2]
[369000772,1751430643495,-490.0,0.00016706,2]
[369000774,1751430643505,-1259.48,0.00016706,2]
[369000776,1751430643515,-441.22945313,0.00016706,2]
[369000778,1751430643524,-4727.72,0.00016706,2]
[369000780,1751430643534,-490.0,0.00016706,2]
[369000782,1751430643543,-1959.46,0.00016706,2]
[369000784,1751430643552,-490.0,0.00016706,2]
[369000786,1751430643562,-490.0,0.00016706,2]
[369000788,1751430643571,-490.0,0.00016706,2]
[369000790,1751430643580,-490.0,0.00016706,2]
[369000792,1751430643590,-490.0,0.00016706,2]
[369000794,1751430643599,-490.0,0.00016706,2]
[369000796,1751430643609,-490.0,0.00016706,2]
[369000798,1751430643622,-980.16,0.00016706,2]
[369000800,1751430643631,-490.0,0.00016706,2]
[369000802,1751430643640,-490.0,0.00016706,2]
[369000804,1751430643650,-490.0,0.00016706,2]
[369000806,1751430643659,-5106.71,0.00016706,2]
[369000808,1751430643668,-1859.56,0.00016706,2]
[369000810,1751430643678,-490.0,0.00016706,2]
[369000812,1751430643688,-490.0,0.00016706,2]
[369000814,1751430643697,-490.0,0.00016706,2]
[369000816,1751430643706,-490.0,0.00016706,2]
[369000818,1751430643715,-457.98039468,0.00016706,2]
[369000819,1751430643725,-819.26,0.00016706,2]
[369000822,1751430643735,-490.0,0.00016706,2]
[369000824,1751430643744,-490.0,0.00016706,2]
[369000826,1751430643753,-490.0,0.00016706,2]
[369000829,1751430643763,-1514.32,0.00016706,2]
[369000831,1751430643772,-490.0,0.00016707,2]
[369000833,1751430643781,-490.0,0.00016707,2]
[369000835,1751430643790,-490.0,0.00016707,2]
[369000836,1751430643800,-490.0,0.00016707,2]
[369000838,1751430643809,-490.0,0.00016707,2]
[369000841,1751430643823,-494.92220984,0.00016707,2]
[369000844,1751430643833,-490.0,0.00016707,2]
[369000846,1751430643842,-497.16890062,0.00016707,2]
[369000848,1751430643852,-490.0,0.00016707,2]
[369000850,1751430643861,-491.71141588,0.00016707,2]
[369000852,1751430643871,-490.0,0.00016707,2]
[369000854,1751430643880,-490.0,0.00016707,2]
[369000855,1751430643889,-490.0,0.00016707,2]
[369000857,1751430643898,-490.0,0.00016707,2]
[369000859,1751430643907,-511.60635614,0.00016707,2]
[369000860,1751430643918,-490.0,0.00016707,2]
[369000862,1751430643931,-490.0,0.00016707,2]
[369000864,1751430643940,-490.0,0.00016707,2]
[369000866,1751430643950,-490.0,0.00016707,2]
[369000868,1751430643960,-490.0,0.00016707,2]
[369000870,1751430643969,-508.51968265,0.00016707,2]
[369000872,1751430643979,-503.30180711,0.00016707,2]
[369000874,1751430643988,-508.13297547,0.00016707,2]
[369000876,1751430643998,-490.0,0.00016707,2]
[369000878,1751430644007,-490.0,0.00016707,2]
[369000880,1751430644016,-490.0,0.00016707,2]
[369000882,1751430644025,-490.0,0.00016707,2]
[369000884,1751430644035,-490.0,0.00016707,2]
[369000886,1751430644044,-490.0,0.00016707,2]
[369000888,1751430644054,-590.96087342,0.00016707,2]
[369000890,1751430644063,-490.0,0.00016707,2]
[369000891,1751430644072,-490.0,0.00016707,2]
[369000893,1751430644082,-490.0,0.00016707,2]
[369000896,1751430644092,-490.0,0.00016707,2]
[369000898,1751430644101,-490.0,0.00016707,2]
[369000899,1751430644111,-490.0,0.00016707,2]
[369000901,1751430644120,-490.0,0.00016707,2]
[369000903,1751430644129,-490.0,0.00016707,2]
[369000905,1751430644138,-490.0,0.00016707,2]
[369000907,1751430644147,-532.67,0.00016707,2]
[369000909,1751430644156,-490.0,0.00016707,2]
[369000911,1751430644166,-641.52,0.00016707,2]
[369000913,1751430644175,-490.0,0.00016707,2]
[369000915,1751430644184,-490.0,0.00016707,2]
[369000917,1751430644195,-490.0,0.00016707,2]
[369000919,1751430644210,-686.71,0.00016707,2]
[369000921,1751430644219,-499.30195449,0.00016707,2]
[369000923,1751430644228,-490.0,0.00016707,2]
[369000925,1751430644238,-490.0,0.00016707,2]
[369000927,1751430644247,-490.0,0.00016707,2]
[369000929,1751430644256,-490.0,0.00016707,2]
[369000931,1751430644266,-490.0,0.00016707,2]
[369000933,1751430644275,-502.5221101,0.00016707,2]
[369000935,1751430644284,-490.0,0.00016707,2]
[369000937,1751430644294,-490.0,0.00016707,2]
[369000938,1751430644303,-490.0,0.00016707,2]
[369000940,1751430644312,-490.0,0.00016707,2]
[369000942,1751430644322,-490.0,0.00016707,2]
[369000943,1751430644331,-490.0,0.00016707,2]
[369000944,1751430644340,-490.0,0.00016707,2]
[369000945,1751430644350,-490.0,0.00016707,2]
[369000946,1751430644359,-490.0,0.00016707,2]
[369000947,1751430644368,-490.0,0.00016707,2]
[369000948,1751430644378,-490.0,0.00016707,2]
[369000949,1751430644387,-490.67688793,0.00016707,2]
[369000950,1751430644396,-490.0,0.00016707,2]
[369000951,1751430644406,-490.0,0.00016707,2]
[369000952,1751430644415,-490.0,0.00016707,2]
[369000953,1751430644424,-490.0,0.00016707,2]
[369000954,1751430644434,-490.0,0.00016707,2]
[369000955,1751430644443,-1043.55,0.00016707,2]
[369000956,1751430644453,-150.0,0.00016708,2]
[369000958,1751430644462,-150.0,0.00016708,2]
[369000960,1751430644472,-150.0,0.00016708,2]
[369000962,1751430644481,-150.0,0.00016708,2]
[369000964,1751430644491,-500.0,0.00016708,2]
[369000965,1751430644500,-151.61938452,0.00016708,2]
[369000967,1751430644510,-150.0,0.00016708,2]
[369000969,1751430644519,-150.0,0.00016708,2]
[369000971,1751430644530,-150.0,0.00016708,2]
[369000973,1751430644539,-150.0,0.00016708,2]
[369000975,1751430644549,-202.7102516,0.00016708,2]
[369000977,1751430644558,-150.0,0.00016708,2]
[369000979,1751430644568,-150.0,0.00016708,2]
[369000981,1751430644577,-500.0,0.00016708,2]
[369000983,1751430644586,-150.69237325,0.00016708,2]
[369000985,1751430644596,-150.55101939,0.00016708,2]
[369000987,1751430644606,-151.04339289,0.00016708,2]
[369000989,1751430644616,-150.0,0.00016708,2]
[369001013,1751430644836,-435.0,0.00016708,2]
[369001015,1751430644846,-500.0,0.00016708,2]
[369001017,1751430644855,-150.0,0.00016708,2]
[369001019,1751430644864,-150.0,0.00016708,2]
[369001021,1751430644874,-500.0,0.00016708,2]
[369001022,1751430644883,-207.4,0.00016751,2]
[369001024,1751430644892,-1000.0,0.00016751,2]
[369001027,1751430644902,-300.0,0.00016751,2]
[369001028,1751430644911,-1026.96371132,0.00016751,2]
[369001030,1751430644920,-500.0,0.00016751,2]
[369001032,1751430644929,-543.17911263,0.00016751,2]
[369001034,1751430644939,-392.77969566,0.00016762,2]
[369001036,1751430644949,-200.0,0.000168,6]
[369001038,1751430644959,-500.0,0.00016822,2]
[369001041,1751430644968,-2795.00913025,0.00016823,2]
[369001043,1751430644978,-500.0,0.000169,6]
[369001045,1751430644987,-163.0,0.000169,2]
[369001047,1751430644996,-163.0,0.000169,2]
[369001048,1751430645006,-2542.98897819,0.000169,2]
[369001050,1751430645015,-229.58266,0.00016912,2]
[369001053,1751430645025,-392.77969566,0.00016917,2]
[369001055,1751430645035,-500.0,0.00016922,2]
[369001057,1751430645044,-500.0,0.00016922,2]
[369001059,1751430645053,-500.0,0.00016922,2]
[369001061,1751430645062,-637.69112022,0.00016922,2]
[369001062,1751430645071,-156.46596563,0.00016922,2]
[369001064,1751430645080,-500.0,0.00016922,2]
[369001066,1751430645090,-23474.30038093,0.00016923,2]
[369001068,1751430645099,-1459.61169681,0.00016923,2]
[369001070,1751430645109,-490.0,0.00016923,2]
[369001072,1751430645118,-490.0,0.00016923,2]
[369001074,1751430645127,-490.0,0.00016923,2]
[369001076,1751430645136,-490.0,0.00016923,2]
[369001078,1751430645145,-490.0,0.00016923,2]
[369001080,1751430645155,-490.0,0.00016923,2]
[369001082,1751430645164,-490.0,0.00016923,2]
[369001084,1751430645173,-490.0,0.00016923,2]
[369001086,1751430645182,-490.0,0.00016923,2]
[369001087,1751430645192,-490.0,0.00016923,2]
[369001089,1751430645201,-490.0,0.00016923,2]
[369001091,1751430645210,-490.0,0.00016923,2]
[369001093,1751430645220,-490.0,0.00016923,2]
[369001095,1751430645229,-409.24382051,0.00016923,2]
[369001097,1751430645238,-490.0,0.00016923,2]
[369001099,1751430645248,-490.0,0.00016923,2]
[369001101,1751430645257,-490.0,0.00016923,2]
[369001103,1751430645267,-490.0,0.00016923,2]
[369001105,1751430645276,-493.27334731,0.00016923,2]
[369001107,1751430645286,-490.0,0.00016923,2]
[369001109,1751430645295,-490.0,0.00016923,2]
[369001111,1751430645304,-490.0,0.00016923,2]
[369001113,1751430645314,-490.0,0.00016923,2]
[369001115,1751430645323,-490.0,0.00016923,2]
[369001117,1751430645332,-490.0,0.00016923,2]
[369001119,1751430645342,-490.0,0.00016923,2]
[369001121,1751430645351,-490.0,0.00016923,2]
[369001123,1751430645360,-490.0,0.00016923,2]
[369001125,1751430645370,-490.0,0.00016923,2]
[369001127,1751430645379,-490.0,0.00016923,2]
[369001129,1751430645389,-490.0,0.00016923,2]
[369001131,1751430645398,-465.41759743,0.00016923,2]
[369001133,1751430645407,-490.0,0.00016923,2]
[369001135,1751430645417,-490.0,0.00016923,2]
[369001137,1751430645426,-490.0,0.00016923,2]
[369001139,1751430645434,-490.0,0.00016923,2]
[369001141,1751430645443,-490.0,0.00016923,2]
[369001143,1751430645453,-500.0,0.00016923,2]
[369001144,1751430645462,-490.0,0.00016923,2]
[369001146,1751430645471,-490.0,0.00016923,2]
[369001148,1751430645480,-490.0,0.00016923,2]
[369001150,1751430645490,-490.0,0.00016923,2]
[369001152,1751430645500,-490.0,0.00016923,2]
[369001154,1751430645509,-490.0,0.00016923,2]
[369001156,1751430645518,-495.18574231,0.00016923,2]
[369001158,1751430645528,-177.96527055,0.00016923,2]
[369001162,1751430645550,-312.03472945,0.00016923,2]
[369001164,1751430645560,-490.0,0.00016923,2]
[369001166,1751430645570,-480.29903431,0.00016923,2]
[369001167,1751430645579,-490.0,0.00016923,2]
[369001170,1751430645590,-490.0,0.00016923,2]
[369001171,1751430645600,-493.13299645,0.00016923,2]
[369001174,1751430645610,-490.0,0.00016923,2]
[369001175,1751430645621,-490.0,0.00016923,2]
[369001177,1751430645630,-490.0,0.00016923,2]
[369001179,1751430645639,-490.0,0.00016923,2]
[369001181,1751430645649,-490.0,0.00016923,2]
[369001183,1751430645659,-490.0,0.00016923,2]
[369001185,1751430645668,-487.41082124,0.00016923,2]
[369001187,1751430645677,-490.0,0.00016923,2]
[369001189,1751430645686,-490.0,0.00016923,2]
[369001191,1751430645699,-490.0,0.00016923,2]
[369001193,1751430645709,-490.0,0.00016923,2]
[369001195,1751430645719,-490.0,0.00016923,2]
[369001197,1751430645729,-490.0,0.00016923,2]
[369001199,1751430645738,-490.0,0.00016923,2]
[369001201,1751430645747,-490.0,0.00016923,2]
[369001203,1751430645758,-490.0,0.00016923,2]
[369001205,1751430645768,-490.0,0.00016923,2]
[369001207,1751430645778,-490.0,0.00016923,2]
[369001209,1751430645787,-490.0,0.00016923,2]
[369001211,1751430645797,-490.0,0.00016923,2]
[369001213,1751430645807,-490.0,0.00016923,2]
[369001215,1751430645816,-490.0,0.00016923,2]
[369001217,1751430645826,-505.93677542,0.00016923,2]
[369001219,1751430645836,-490.0,0.00016923,2]
[369001221,1751430645845,-490.0,0.00016923,2]
[369001223,1751430645856,-490.0,0.00016923,2]
[369001225,1751430645866,-490.0,0.00016923,2]
[369001227,1751430645875,-490.0,0.00016923,2]
[369001229,1751430645885,-490.0,0.00016923,2]
[369001231,1751430645895,-490.0,0.00016923,2]
[369001233,1751430645904,-493.51902528,0.00016923,2]
[369001235,1751430645914,-490.0,0.00016923,2]
[369001237,1751430645923,-88.18270212,0.00016923,2]
[369001269,1751430646240,-490.0,0.00016706,2]
[369001271,1751430646250,-186.2513546,0.00016706,2]
[369001285,1751430646376,-360.5586454,0.00016706,2]
[369001286,1751430646386,-401.81729788,0.00016923,2]
[369001289,1751430646396,-490.0,0.00016923,2]
[369001291,1751430646406,-490.0,0.00016923,2]
[369001292,1751430646415,-490.0,0.00016923,2]
[369001294,1751430646425,-490.0,0.00016923,2]
[369001296,1751430646434,-490.0,0.00016923,2]
[369001298,1751430646443,-488.93361726,0.00016923,2]
[369001339,1751430646877,-490.0,0.00016706,2]
[369001340,1751430646887,-325.6,0.00016706,2]
[369001341,1751430646897,-9.36555513,0.00016923,2]
[369001342,1751430646906,-365.01988036,0.00016923,2]
[369001343,1751430646916,-490.0,0.00016923,2]
[369001344,1751430646925,-272.87589788,0.00016923,2]
[369001345,1751430646950,-217.12410212,0.00016923,2]
[369001346,1751430646960,-242.46575892,0.00016923,2]
[369001347,1751430646971,-247.53424108,0.00016923,2]
[369001350,1751430646984,-490.0,0.00016923,2]
[369001352,1751430646995,-490.0,0.00016923,2]
[369001354,1751430647010,-490.0,0.00016923,2]
[369001357,1751430647022,-490.0,0.00016923,2]
[369001359,1751430647035,-490.0,0.00016923,2]
[369001361,1751430647045,-490.0,0.00016923,2]
[369001363,1751430647056,-490.0,0.00016923,2]
[369001365,1751430647068,-490.0,0.00016923,2]
[369001368,1751430647081,-533.89904888,0.00016923,2]
[369001370,1751430647093,-490.0,0.00016923,2]
[369001372,1751430647104,-490.0,0.00016923,2]
[369001375,1751430647116,-490.0,0.00016923,2]
[369001377,1751430647127,-490.0,0.00016923,2]
[369001379,1751430647139,-490.0,0.00016923,2]
[369001381,1751430647150,-490.0,0.00016923,2]
[369001383,1751430647162,-490.0,0.00016923,2]
[369001386,1751430647172,-490.0,0.00016923,2]
[369001388,1751430647181,-160.41789824,0.00016923,2]
[369001390,1751430647196,-329.58210176,0.00016923,2]
[369001391,1751430647207,-506.52768895,0.00016923,2]
[369001392,1751430647219,-490.0,0.00016923,2]
[369001393,1751430647231,-490.0,0.00016923,2]
[369001394,1751430647243,-490.0,0.00016923,2]
[369001395,1751430647255,-32.00399935,0.00016923,2]
[369001532,1751431062733,160.3,0.00013699,2]
[369001898,1751431832421,-547.0,0.00014829,2]
[369001899,1751431832435,-421.34180403,0.000149,2]
[369001900,1751431832447,-250.0,0.00015,2]
[369001901,1751431832458,-382.25501085,0.000154,2]
[369001902,1751431832484,-1314.72317245,0.000154,2]
[369001903,1751431832498,-4953.12357553,0.000154,2]
[369001904,1751431832512,-2655.84517306,0.000154,2]
[369001905,1751431832526,-15509.15851568,0.000154,2]
[369001906,1751431832540,-661.01351253,0.000154,2]
[369002669,1751431840685,-531.95,0.000154,2]
[369002670,1751431840699,-853.68400001,0.000154,2]
[369003035,1751431845205,-2976.84933681,0.000154,2]
[369003044,1751431845282,-130.90827226,0.000154,2]
[369003054,1751431845371,-371.260055,0.000154,2]
[369003154,1751431846227,-5044.31928048,0.000154,2]
[369003161,1751431846282,-562.22359685,0.000154,2]
[369003172,1751431846390,-1601.68649849,0.000154,2]
[369003173,1751431846399,-300.0,0.00015499,2]
[369003175,1751431846409,-243.0,0.00015499,2]
[369003177,1751431846419,-200.0,0.00015679,7]
[369003179,1751431846428,-1000.0,0.00015705,2]
[369003181,1751431846437,-5509.0,0.000159,3]
[369003183,1751431846446,-2577.75577561,0.000159,2]
[369003185,1751431846455,-183.59,0.00015919,2]
[369003187,1751431846464,-167.33,0.00015965,2]
[369003189,1751431846473,-1002.0,0.000163,2]
[369003191,1751431846482,-5509.0,0.000164,5]
[369003193,1751431846491,-171.21,0.00016438,2]
[369003195,1751431846500,-327.88,0.00016438,2]
[369003197,1751431846510,-456.54,0.00016438,2]
[369003199,1751431846519,-456.54,0.00016438,2]
[369003201,1751431846528,-197.72,0.00016438,2]
[369003202,1751431846537,-4065.37,0.000165,2]
[369003204,1751431846546,-456.54,0.00016578,2]
[369003206,1751431846555,-333.86274133,0.00016605,2]
[369003207,1751431846564,-2560.0551671,0.00016606,2]
[369003208,1751431846572,-1000.0,0.00016606,2]
[369003209,1751431846582,-2500.0,0.00016606,2]
[369003210,1751431846591,-1000.0,0.00016606,2]
[369003211,1751431846600,-1854.7878,0.00016607,2]
[369003212,1751431846608,-2577.75577556,0.00016659,2]
[369003213,1751431846617,-175.47,0.00016695,2]
[369003214,1751431846626,-848.98,0.00016695,2]
[369003215,1751431846635,-1000.0,0.000167,2]
[369003216,1751431846644,-1000.0,0.000167,2]
[369003217,1751431846653,-1049.0,0.000167,2]
[369003218,1751431846662,-1000.0,0.000167,3]
[369003219,1751431846671,-1000.0,0.000167,3]
[369003221,1751431846680,-1000.0,0.000167,2]
[369003223,1751431846689,-490.0,0.00016704,2]
[369003225,1751431846699,-633.62,0.00016704,2]
[369003227,1751431846708,-490.0,0.00016704,2]
[369003228,1751431846717,-490.0,0.00016704,2]
[369003230,1751431846726,-490.0,0.00016704,2]
[369003233,1751431846735,-490.0,0.00016704,2]
[369003234,1751431846745,-490.0,0.00016704,2]
[369003236,1751431846754,-490.0,0.00016704,2]
[369003238,1751431846763,-490.0,0.00016704,2]
[369003241,1751431846772,-490.0,0.00016704,2]
[369003242,1751431846783,-490.0,0.00016704,2]